bitfinex-derivatives/quotes_BTCF0:USTF0_20240824
["timestamp","ask_amount","ask_price","bid_price","bid_amount"]
[1724511352005,4e-05,64188.0,64187.0,0.19608057]
[1724511352510,4e-05,64188.0,64187.0,0.02977811]
[1724511352710,1.306101,64188.0,64185.0,0.06224367]
[1724511352906,0.15569291,64186.0,64185.0,0.02786516]
[1724511353106,0.10310521,64186.0,64181.0,0.2650023]
[1724511353308,0.10310521,64186.0,64181.0,0.21831371]
[1724511353309,0.3608,64182.0,64181.0,0.21831371]
[1724511353815,0.906148,64182.0,64181.0,0.21831371]
[1724511354108,2.686148,64182.0,64181.0,0.24598821]
[1724511354311,3.086148,64182.0,64181.0,0.24598821]
[1724511354613,3.086148,64182.0,64181.0,0.25098821]
[1724511355107,3.086148,64182.0,64181.0,0.24898821]
[1724511355714,2.686148,64182.0,64181.0,0.24698821]
[1724511356408,2.686148,64182.0,64181.0,0.24798821]
[1724511357214,2.686148,64182.0,64181.0,0.24698821]
[1724511358316,2.74828391,64182.0,64181.0,0.24698821]
[1724511360411,2.686148,64182.0,64181.0,0.24698821]
[1724511360820,2.686148,64182.0,64181.0,0.02890821]
[1724511361625,2.218708,64182.0,64181.0,0.02890821]
[1724511368239,2.14084,64182.0,64181.0,0.10677721]
[1724511371833,2.14084,64182.0,64181.0,0.02890821]
[1724511377147,2.218708,64182.0,64181.0,0.02890821]
[1724511378940,2.218708,64182.0,64181.0,0.07550802]
[1724511379344,2.218708,64182.0,64181.0,0.02890821]
[1724511380241,0.438708,64182.0,64181.0,0.02890821]
[1724511381346,0.50084391,64182.0,64181.0,0.02890821]
[1724511382335,0.50084391,64182.0,64181.0,0.09115188]
[1724511382336,0.438708,64182.0,64181.0,0.09115188]
[1724511382642,0.438708,64182.0,64181.0,0.02890821]
[1724511383349,0.438708,64182.0,64181.0,0.0911246]
[1724511383542,0.438708,64182.0,64181.0,0.02890821]
[1724511384141,0.438708,64182.0,64181.0,0.09112503]
[1724511384341,0.438708,64182.0,64181.0,0.02890821]
[1724511384537,0.50095644,64182.0,64181.0,0.09112815]
[1724511384848,0.438708,64182.0,64181.0,0.09112815]
[1724511385849,0.438708,64182.0,64181.0,0.02890821]
[1724511386246,0.50095987,64182.0,64181.0,0.02890821]
[1724511387449,0.50095987,64182.0,64181.0,0.09112815]
[1724511387450,0.438708,64182.0,64181.0,0.09112815]
[1724511387648,0.500964,64182.0,64181.0,0.09112815]
[1724511387846,0.438708,64182.0,64181.0,0.09112815]
[1724511390056,0.438708,64182.0,64181.0,0.02890821]
[1724511390256,0.155744,64179.0,64178.0,0.06221994]
[1724511390452,0.077874,64177.0,64175.0,0.06221994]
[1724511390648,0.077878,64174.0,64173.0,0.28033994]
[1724511390848,0.438678,64174.0,64173.0,0.28033994]
[1724511391151,0.438678,64174.0,64173.0,0.24650362]
[1724511391450,0.438718,64174.0,64173.0,0.24650362]
[1724511392458,0.438718,64174.0,64173.0,0.25350362]
[1724511393149,0.438718,64174.0,64173.0,0.26350362]
[1724511394558,0.438718,64174.0,64173.0,0.32572356]
[1724511394559,0.36084,64174.0,64173.0,0.32572356]
[1724511394745,0.438718,64174.0,64173.0,0.32572356]
[1724511395149,0.438718,64174.0,64173.0,0.26350362]
[1724511399860,0.077918,64174.0,64173.0,0.26350362]
[1724511400158,4e-05,64174.0,64173.0,0.26350362]
[1724511401161,0.077918,64174.0,64173.0,0.32566999]
[1724511401363,0.077918,64174.0,64173.0,0.26350362]
[1724511401854,0.077918,64174.0,64173.0,0.32567266]
[1724511402256,0.077918,64174.0,64173.0,0.26350362]
[1724511402456,0.077918,64174.0,64173.0,0.3256724]
[1724511402659,0.077918,64174.0,64173.0,0.26350362]
[1724511402855,0.077918,64174.0,64173.0,0.04538362]
[1724511403063,4e-05,64174.0,64173.0,0.04538362]
[1724511403256,4e-05,64174.0,64173.0,0.10755202]
[1724511405258,4e-05,64174.0,64173.0,0.04538362]
[1724511422969,4e-05,64174.0,64173.0,0.12326262]
[1724511424262,4e-05,64174.0,64173.0,0.20104594]
[1724511424462,4e-05,64174.0,64173.0,0.29009387]
[1724511424667,4e-05,64174.0,64173.0,0.29009338]
[1724511426073,4e-05,64174.0,64173.0,0.21231006]
[1724511426773,4e-05,64174.0,64173.0,0.21213517]
[1724511426974,4e-05,64174.0,64173.0,0.21213314]
[1724511429876,4e-05,64174.0,64173.0,0.21198134]
[1724511430076,0.04676652,64174.0,64173.0,0.21198134]
[1724511430870,0.06222994,64175.0,64173.0,1.15728922]
[1724511431071,0.05744115,64183.0,64174.0,0.49861872]
[1724511431272,0.05744115,64185.0,64181.0,0.077868]
[1724511431475,0.3608,64183.0,64180.0,0.0778041]
[1724511431667,0.3608,64183.0,64179.0,0.07777234]
[1724511431873,0.123868,64182.0,64181.0,0.06222424]
[1724511432179,0.077871,64180.0,64178.0,0.04667713]
[1724511432477,0.432042,64182.0,64175.0,0.06222424]
[1724511432478,0.124273,64179.0,64175.0,0.04667713]
[1724511432682,0.4386437,64176.0,64175.0,0.04667713]
[1724511433187,0.3608,64176.0,64175.0,0.04667713]
[1724511434583,0.3608,64176.0,64175.0,0.0466734]
[1724511434783,0.3608,64176.0,64173.0,0.03538362]
[1724511434993,0.3608,64176.0,64173.0,0.09760786]
[1724511435191,1.78,64175.0,64173.0,0.09760786]
[1724511435383,1.78,64175.0,64173.0,0.09060786]
[1724511435584,4e-05,64174.0,64173.0,0.09060786]
[1724511435983,4e-05,64174.0,64173.0,0.10060786]
[1724511436182,1.78004,64174.0,64173.0,0.10060786]
[1724511437789,1.78004,64174.0,64173.0,0.10760786]
[1724511438587,1.78004,64174.0,64173.0,0.10060786]
[1724511438888,1.78004,64174.0,64173.0,0.04538362]
[1724511439894,1.826726,64174.0,64173.0,0.04538362]
[1724511441292,1.78004,64174.0,64173.0,0.06922377]
[1724511441484,2.24752,64174.0,64171.0,0.06222665]
[1724511441690,1.78004,64174.0,64170.0,0.06222665]
[1724511441997,0.077882,64171.0,64169.0,0.06222665]
[1724511442292,0.4095,64170.0,64169.0,0.06222665]
[1724511442482,0.4095,64170.0,64168.0,0.06222665]
[1724511443402,4e-05,64169.0,64168.0,0.06222665]
[1724511444690,4e-05,64169.0,64167.0,0.09099648]
[1724511445001,0.00104,64169.0,64168.0,0.07422665]
[1724511445497,0.00104,64169.0,64168.0,0.012]
[1724511445897,0.00204,64169.0,64168.0,0.018]
[1724511446596,0.04870699,64169.0,64168.0,0.018]
[1724511446998,0.04870699,64169.0,64168.0,0.006]
[1724511447597,0.40950699,64169.0,64168.0,0.006]
[1724511447802,0.36284,64169.0,64168.0,0.018]
[1724511448699,0.40950699,64169.0,64168.0,0.018]
[1724511449594,0.36284,64169.0,64168.0,0.018]
[1724511453900,0.40950699,64169.0,64168.0,0.018]
[1724511455396,0.40950699,64169.0,64168.0,0.06465887]
[1724511455601,0.40950699,64169.0,64168.0,0.018]
[1724511457503,0.36284,64169.0,64168.0,0.06466136]
[1724511458000,0.440724,64169.0,64168.0,0.06466136]
[1724511458907,0.440724,64169.0,64168.0,0.018]
[1724511459100,0.48738194,64169.0,64168.0,0.018]
[1724511459297,0.440724,64169.0,64168.0,0.018]
[1724511459598,0.48738526,64169.0,64168.0,0.018]
[1724511459798,0.48738523,64169.0,64168.0,0.018]
[1724511460597,0.440724,64169.0,64168.0,0.018]
[1724511461605,0.440724,64169.0,64168.0,0.08022665]
[1724511463706,0.440724,64169.0,64168.0,0.018]
[1724511470619,0.440724,64169.0,64168.0,0.18860816]
[1724511473217,0.440724,64169.0,64168.0,0.18851455]
[1724511474915,0.440724,64169.0,64168.0,0.09577234]
[1724511476111,0.36284,64169.0,64168.0,0.17365734]
[1724511476317,0.36284,64169.0,64168.0,0.095885]
[1724511476916,0.36284,64169.0,64168.0,0.17365734]
[1724511477623,0.00204,64169.0,64168.0,0.54866574]
[1724511481528,0.00204,64169.0,64168.0,0.64204568]
[1724511481914,0.00204,64169.0,64168.0,0.54866405]
[1724511482119,0.00204,64169.0,64168.0,0.642043]
[1724511483624,0.00204,64169.0,64168.0,0.54866405]
[1724511486219,0.00204,64169.0,64168.0,0.5489572]
[1724511491219,0.00204,64169.0,64168.0,0.1881572]
[1724511495932,0.00204,64169.0,64168.0,0.18808561]
[1724511500524,0.00204,64169.0,64168.0,0.11020061]
[1724511500723,0.00204,64169.0,64168.0,0.018]
[1724511501530,0.04876246,64169.0,64168.0,0.018]
[1724511501835,0.079924,64169.0,64168.0,0.018]
[1724511502738,0.12664646,64169.0,64168.0,0.018]
[1724511506937,0.079924,64169.0,64168.0,0.09579012]
[1724511507139,0.12664646,64169.0,64168.0,0.018]
[1724511507339,0.12662635,64169.0,64168.0,0.018]
[1724511507641,0.12662635,64169.0,64168.0,0.18842309]
[1724511507642,0.079924,64169.0,64168.0,0.18842309]
[1724511508050,0.12662635,64169.0,64168.0,0.018]
[1724511508245,0.079924,64169.0,64168.0,0.018]
[1724511509331,0.12662707,64169.0,64168.0,0.018]
[1724511509737,0.079924,64169.0,64168.0,0.09579012]
[1724511510029,0.079924,64169.0,64168.0,0.018]
[1724511510944,0.079924,64169.0,64168.0,0.09579012]
[1724511511147,0.079924,64169.0,64168.0,0.018]
[1724511511337,0.079924,64169.0,64168.0,0.09579012]
[1724511511649,0.079924,64169.0,64168.0,0.18835193]
[1724511513248,0.079924,64169.0,64168.0,0.11056181]
[1724511515339,0.079924,64169.0,64168.0,0.11052998]
[1724511521352,0.079924,64169.0,64168.0,0.11051487]
[1724511525151,0.079924,64169.0,64168.0,0.11054235]
[1724511526357,0.12662707,64169.0,64168.0,0.11054235]
[1724511527662,0.04874307,64169.0,64168.0,0.11054235]
[1724511528146,0.05632223,64174.0,64168.0,0.88866333]
[1724511528346,0.04694991,64175.0,64173.0,0.3608]
[1724511528546,0.00023371,64175.0,64174.0,0.18744235]
[1724511528860,0.00023371,64175.0,64174.0,0.421461]
[1724511529063,0.00023371,64175.0,64174.0,0.421501]
[1724511529752,0.00123371,64175.0,64174.0,0.429501]
[1724511529956,0.00123371,64175.0,64174.0,0.50750155]
[1724511530460,0.0467162,64181.0,64180.0,0.077871]
[1724511531354,0.0467162,64185.0,64180.0,0.36084]
[1724511531560,0.0467162,64186.0,64180.0,0.43855083]
[1724511531760,0.0467162,64186.0,64185.0,0.06212887]
[1724511532347,0.40774991,64187.0,64185.0,4e-05]
[1724511532554,0.40774991,64187.0,64185.0,0.04674]
[1724511533149,0.40774991,64187.0,64186.0,4e-05]
[1724511533150,0.40767028,64187.0,64186.0,4e-05]
[1724511533355,0.36103371,64187.0,64186.0,0.04660438]
[1724511533958,0.36503371,64187.0,64186.0,0.04660438]
[1724511534150,0.00423371,64187.0,64186.0,0.04660438]
[1724511535356,0.00423371,64187.0,64186.0,4e-05]
[1724511535663,0.01023371,64187.0,64186.0,0.00104]
[1724511541663,0.08809571,64187.0,64186.0,0.00104]
[1724511549671,0.08809571,64187.0,64186.0,0.078903]
[1724511553669,0.13473228,64187.0,64186.0,0.078903]
[1724511554266,0.08809571,64187.0,64186.0,0.12546738]
[1724511554467,0.05687344,64187.0,64186.0,0.078903]
[1724511555173,0.01023371,64187.0,64186.0,0.00104]
[1724511558266,0.01023371,64187.0,64186.0,0.06316887]
[1724511558470,0.01023371,64187.0,64186.0,0.00104]
[1724511558663,0.01023371,64187.0,64186.0,0.06316887]
[1724511559376,0.01023371,64187.0,64186.0,0.00104]
[1724511561666,0.01023371,64187.0,64186.0,0.04784]
[1724511561865,0.01023371,64187.0,64186.0,0.125703]
[1724511564970,0.37103371,64187.0,64186.0,0.125703]
[1724511565367,0.37103371,64187.0,64186.0,0.20341383]
[1724511565777,0.37103371,64187.0,64186.0,0.29570007]
[1724511566271,0.37103371,64187.0,64186.0,0.20341383]
[1724511567771,0.37103371,64187.0,64186.0,0.125703]
[1724511567981,0.37103371,64187.0,64186.0,0.20341383]
[1724511568177,0.37103371,64187.0,64186.0,0.125703]
[1724511568374,0.37103371,64187.0,64186.0,0.20341383]
[1724511569069,0.41773449,64187.0,64186.0,0.20341383]
[1724511569270,0.01023371,64187.0,64186.0,0.21774542]
[1724511570070,0.40750078,64192.0,64191.0,0.077857]
[1724511570368,0.3608,64192.0,64191.0,0.077857]
[1724511570573,0.3608,64192.0,64191.0,0.24633528]
[1724511570978,0.3608,64192.0,64191.0,0.24637528]
[1724511571170,0.3708,64192.0,64191.0,0.078897]
[1724511571587,0.3718,64192.0,64191.0,0.079897]
[1724511574074,0.011,64192.0,64191.0,0.079897]
[1724511575775,0.011,64192.0,64191.0,0.10786576]
[1724511595385,0.05770078,64192.0,64191.0,0.10786576]
[1724511595581,0.011,64192.0,64191.0,0.18553767]
[1724511595786,0.011,64192.0,64191.0,0.10786576]
[1724511596192,0.05770078,64192.0,64191.0,0.10786576]
[1724511596385,0.011,64192.0,64191.0,0.10786576]
[1724511597299,0.05770078,64192.0,64191.0,0.10786576]
[1724511597594,0.011,64192.0,64191.0,0.10786576]
[1724511598189,0.05770078,64192.0,64191.0,0.18553767]
[1724511599189,0.05770078,64192.0,64191.0,0.19877169]
[1724511599590,0.07316241,64192.0,64191.0,0.10786576]
[1724511599795,0.011,64192.0,64191.0,0.10786576]
[1724511602288,0.088856,64192.0,64191.0,0.03000876]
[1724511602690,0.1666997,64192.0,64191.0,0.07663641]
[1724511602890,0.2082951,64192.0,64191.0,0.03000876]
[1724511603394,0.183056,64192.0,64191.0,0.03000876]
[1724511603906,0.26087042,64192.0,64191.0,0.03000876]
[1724511604394,0.183056,64192.0,64191.0,0.03000876]
[1724511605000,0.33872642,64192.0,64191.0,0.03000876]
[1724511605188,0.077862,64187.0,64183.0,0.04662765]
[1724511605389,0.438666,64184.0,64183.0,0.02802405]
[1724511605587,0.077869,64181.0,64180.0,0.00023371]
[1724511605786,0.438669,64181.0,64180.0,0.00023371]
[1724511606300,0.516578,64181.0,64180.0,0.00023371]
[1724511606603,1.384018,64181.0,64180.0,0.00023371]
[1724511606898,1.384018,64181.0,64164.0,0.0456]
[1724511606899,0.077884,64169.0,64168.0,0.04662765]
[1724511607195,0.077884,64169.0,64164.0,0.02878481]
[1724511607196,0.155774,64166.0,64164.0,0.02878481]
[1724511607397,0.155774,64166.0,64164.0,0.0002]
[1724511607604,0.52965118,64165.0,64164.0,0.0002]
[1724511607794,0.46756,64165.0,64164.0,0.0002]
[1724511607995,0.8676,64165.0,64164.0,0.0002]
[1724511608497,2.6476,64165.0,64164.0,0.0002]
[1724511608693,2.6476,64165.0,64164.0,0.0052]
[1724511609388,2.70954965,64165.0,64164.0,0.0052]
[1724511609593,2.6476,64165.0,64164.0,0.0052]
[1724511609995,2.6932,64165.0,64164.0,0.0052]
[1724511610600,2.6932,64165.0,64164.0,0.0002]
[1724511610799,2.6932,64165.0,64164.0,0.0042]
[1724511611807,2.6932,64165.0,64164.0,0.0092]
[1724511612004,0.5132,64165.0,64164.0,0.0092]
[1724511612205,0.9132,64165.0,64164.0,0.0092]
[1724511612510,0.5132,64165.0,64164.0,0.0092]
[1724511612807,0.9132,64165.0,64164.0,0.0092]
[1724511612993,0.5132,64165.0,64164.0,0.0092]
[1724511613198,0.9132,64165.0,64164.0,0.0092]
[1724511613402,0.591089,64165.0,64164.0,0.0092]
[1724511613997,0.991089,64165.0,64164.0,0.0092]
[1724511614809,0.591089,64165.0,64164.0,0.0092]
[1724511617502,0.123529,64165.0,64164.0,0.0092]
[1724511618402,0.591089,64165.0,64164.0,0.0092]
[1724511618703,1.068978,64165.0,64164.0,0.0092]
[1724511619794,1.068978,64165.0,64158.0,0.00023371]
[1724511619795,0.077896,64159.0,64158.0,0.00023371]
[1724511620005,0.916592,64159.0,64158.0,0.00023371]
[1724511620198,1.384192,64159.0,64158.0,0.00023371]
[1724511620601,1.2284,64159.0,64140.0,0.077918]
[1724511620797,0.799518,64141.0,64140.0,0.02821802]
[1724511621004,0.07792,64139.0,64137.0,0.077922]
[1724511621609,0.7216,64141.0,64139.0,0.077919]
[1724511622302,0.7216,64141.0,64140.0,0.0489]
[1724511622812,0.799519,64141.0,64140.0,0.0489]
[1724511623405,0.00023371,64144.0,64140.0,0.0489]
[1724511623712,0.00023371,64144.0,64143.0,0.077915]
[1724511625104,0.001,64141.0,64140.0,0.0489]
[1724511625709,0.001,64141.0,64140.0,0.126819]
[1724511626010,0.07814771,64144.0,64143.0,0.006]
[1724511627801,0.07814771,64144.0,64143.0,0.03370848]
[1724511628109,0.07818771,64144.0,64143.0,0.006]
[1724511628307,0.07818771,64144.0,64143.0,0.011]
[1724511629207,0.07818771,64144.0,64143.0,0.005]
[1724511630217,0.07818771,64144.0,64143.0,0.011]
[1724511634910,0.00027371,64144.0,64143.0,0.088915]
[1724511635118,0.077907,64150.0,64146.0,0.077911]
[1724511635307,0.077903,64154.0,64148.0,0.077908]
[1724511635507,0.077903,64154.0,64149.0,0.077908]
[1724511635709,0.077903,64154.0,64150.0,0.077907]
[1724511635910,0.077903,64154.0,64147.0,0.0495]
[1724511636115,0.077905,64152.0,64147.0,0.111664]
[1724511636313,0.077906,64151.0,64150.0,0.062164]
[1724511636509,0.077906,64151.0,64149.0,0.062164]
[1724511637417,4e-05,64150.0,64149.0,0.062164]
[1724511638515,4e-05,64150.0,64149.0,0.02802589]
[1724511638713,4e-05,64150.0,64148.0,0.077909]
[1724511639510,4e-05,64149.0,64148.0,0.077909]
[1724511640520,4e-05,64149.0,64148.0,0.084909]
[1724511641221,0.04641943,64158.0,64149.0,0.46768]
[1724511641519,0.3608,64159.0,64156.0,0.14002468]
[1724511641710,0.3608,64159.0,64156.0,0.077899]
[1724511642221,0.3608,64159.0,64156.0,0.945499]
[1724511643015,0.3608,64159.0,64156.0,1.18021182]
[1724511643221,0.00123371,64157.0,64156.0,1.18021182]
[1724511643626,0.00123371,64157.0,64156.0,0.78021182]
[1724511644314,0.00123371,64157.0,64156.0,0.82731182]
[1724511644315,0.00223371,64157.0,64156.0,0.82731182]
[1724511644826,0.00223371,64157.0,64156.0,0.85581255]
[1724511647621,0.00223371,64157.0,64156.0,0.88016181]
[1724511648419,0.00223371,64157.0,64156.0,0.94218129]
[1724511649427,0.00223371,64157.0,64156.0,0.91783203]
[1724511649628,0.00223371,64157.0,64156.0,0.45023203]
[1724511649819,0.00223371,64157.0,64156.0,0.4745813]
[1724511650424,0.00223371,64157.0,64156.0,0.41256182]
[1724511650727,0.00223371,64157.0,64156.0,0.38821255]
[1724511651029,0.00223371,64157.0,64156.0,0.41256182]
[1724511651322,0.00223371,64157.0,64156.0,0.4745813]
[1724511651723,0.00223371,64157.0,64156.0,0.45023203]
[1724511652317,0.00223371,64157.0,64156.0,0.38821255]
[1724511652517,0.00223371,64157.0,64156.0,0.45023203]
[1724511653219,0.00223371,64157.0,64156.0,0.47458135]
[1724511655719,0.00223371,64157.0,64156.0,0.41256187]
[1724511656234,0.00223371,64157.0,64156.0,0.41256194]
[1724511656423,0.00223371,64157.0,64156.0,0.47458142]
[1724511660334,0.00223371,64157.0,64156.0,0.41256194]
[1724511661429,0.00223371,64157.0,64156.0,0.47459122]
[1724511661728,0.00223371,64157.0,64156.0,0.41256194]
[1724511664431,0.00223371,64157.0,64156.0,0.58566586]
[1724511665436,0.00223371,64157.0,64156.0,0.5079417]
[1724511665736,0.00223371,64157.0,64156.0,0.48359231]
[1724511666030,0.00223371,64157.0,64156.0,0.50794163]
[1724511668326,0.00223371,64157.0,64156.0,0.50794117]
[1724511668930,0.00223371,64157.0,64156.0,0.53229004]
[1724511669144,0.00223371,64157.0,64156.0,0.50794118]
[1724511669337,0.00223371,64157.0,64156.0,0.60132013]
[1724511670331,0.00223371,64157.0,64156.0,0.50794129]
[1724511671639,0.00223371,64157.0,64156.0,0.60126496]
[1724511671841,0.00223371,64157.0,64156.0,0.60129749]
[1724511673531,0.00223371,64157.0,64156.0,0.50794129]
[1724511673939,0.00223371,64157.0,64156.0,0.60129281]
[1724511674243,0.00223371,64157.0,64156.0,0.60129253]
[1724511675139,0.00223371,64157.0,64156.0,0.61163168]
[1724511675548,0.00223371,64157.0,64156.0,0.61163194]
[1724511675841,0.00223371,64157.0,64156.0,0.53373294]
[1724511676043,0.40945314,64157.0,64156.0,0.43004255]
[1724511676245,0.36303371,64157.0,64156.0,0.50783834]
[1724511676444,0.36303371,64157.0,64156.0,0.46073834]
[1724511676843,0.36303371,64157.0,64156.0,0.36535858]
[1724511677147,0.97048136,64157.0,64156.0,0.05284997]
[1724511677336,0.98624257,64157.0,64156.0,0.05284997]
[1724511677537,0.93378491,64157.0,64156.0,0.02850073]
[1724511677734,0.9337873,64157.0,64149.0,0.06222689]
[1724511677939,0.06230303,64153.0,64152.0,0.06223345]
[1724511678136,0.077902,64154.0,64152.0,0.02435394]
[1724511678341,0.077902,64154.0,64147.0,0.077909]
[1724511678342,0.077902,64154.0,64153.0,0.08655198]
[1724511678539,0.077902,64154.0,64153.0,0.02435394]
[1724511678741,0.077903,64153.0,64152.0,0.06219804]
[1724511678939,0.077863,64153.0,64152.0,0.06219804]
[1724511679139,0.077863,64153.0,64149.0,0.007]
[1724511679140,0.12455123,64153.0,64151.0,0.06219804]
[1724511679345,0.12455123,64153.0,64152.0,0.02435395]
[1724511679541,0.077904,64152.0,64151.0,0.06219804]
[1724511679945,0.124404,64152.0,64151.0,0.06219804]
[1724511680147,0.077905,64151.0,64149.0,0.07519804]
[1724511680344,0.3608,64150.0,64149.0,0.07519804]
[1724511681053,0.36084,64150.0,64149.0,0.07519804]
[1724511681252,0.36084,64150.0,64149.0,0.006]
[1724511681447,0.36084,64150.0,64148.0,0.06219804]
[1724511682053,0.439747,64150.0,64149.0,0.007]
[1724511682351,0.440707,64150.0,64149.0,0.01296]
[1724511682552,0.439707,64150.0,64149.0,0.006]
[1724511682748,0.440707,64150.0,64149.0,0.006]
[1724511685655,0.439707,64150.0,64149.0,0.006]
[1724511685846,0.440707,64150.0,64149.0,0.013]
[1724511687164,0.48732881,64150.0,64149.0,0.013]
[1724511687365,0.440707,64150.0,64149.0,0.013]
[1724511695056,0.440707,64150.0,64149.0,0.03735524]
[1724511695652,0.440707,64150.0,64149.0,0.013]
[1724511696055,0.440707,64150.0,64149.0,0.03735403]
[1724511697161,0.3628,64150.0,64149.0,0.03735403]
[1724511697762,0.3628,64150.0,64149.0,0.11526203]
[1724511698865,0.3628,64150.0,64149.0,0.11526112]
[1724511699062,0.3628,64150.0,64149.0,0.090908]
[1724511699272,0.3628,64150.0,64149.0,0.11526118]
[1724511699563,0.002,64150.0,64149.0,0.11526118]
[1724511699861,0.002,64150.0,64149.0,0.03735318]
[1724511700255,0.002,64150.0,64149.0,0.09955122]
[1724511701263,0.002,64150.0,64149.0,0.03735318]
[1724511705265,0.002,64150.0,64149.0,0.013]
[1724511705470,0.002,64150.0,64149.0,0.03735264]
[1724511708474,0.002,64150.0,64149.0,0.013]
[1724511708671,0.002,64150.0,64149.0,0.03735263]
[1724511710881,0.002,64150.0,64149.0,0.11526063]
[1724511711773,0.002,64150.0,64149.0,0.090908]
[1724511711980,0.002,64150.0,64149.0,0.1152613]
[1724511713870,0.002,64150.0,64149.0,0.0373533]
[1724511714277,0.3628,64150.0,64149.0,0.0373533]
[1724511715574,0.440707,64150.0,64149.0,0.0373533]
[1724511718068,0.440707,64150.0,64149.0,0.013]
[1724511718277,0.440707,64150.0,64149.0,0.03735434]
[1724511718478,0.440707,64150.0,64149.0,0.013]
[1724511718777,0.440707,64150.0,64149.0,0.03735436]
[1724511719370,0.53390404,64150.0,64149.0,0.03735436]
[1724511719679,0.487307,64150.0,64149.0,0.03735436]
[1724511720682,0.535807,64150.0,64149.0,0.03735436]
[1724511720983,0.59811003,64150.0,64149.0,0.03735436]
[1724511724082,0.535807,64150.0,64149.0,0.03735436]
[1724511724282,0.613714,64150.0,64149.0,0.03735436]
[1724511724689,0.69159328,64150.0,64149.0,0.03735436]
[1724511724989,0.63897051,64150.0,64149.0,0.03735436]
[1724511725485,0.69154523,64150.0,64149.0,0.03735436]
[1724511726585,0.69154523,64150.0,64149.0,0.013]
[1724511726887,0.69154523,64150.0,64149.0,0.03735788]
[1724511727486,0.613714,64150.0,64149.0,0.03735788]
[1724511728188,0.518614,64150.0,64149.0,0.03735788]
[1724511729603,0.58083811,64150.0,64149.0,0.03735788]
[1724511729902,0.58083811,64150.0,64149.0,0.013]
[1724511730109,0.58083811,64150.0,64149.0,0.03735679]
[1724511730292,0.518614,64150.0,64149.0,0.03735679]
[1724511730807,0.58083422,64150.0,64149.0,0.03735679]
[1724511733198,0.518614,64150.0,64149.0,0.03735679]
[1724511733395,0.518614,64150.0,64149.0,0.03735688]
[1724511734793,0.58083202,64150.0,64149.0,0.03735688]
[1724511736608,0.58083202,64150.0,64149.0,0.0373565]
[1724511737504,0.518614,64150.0,64149.0,0.0373565]
[1724511738494,0.58084384,64150.0,64149.0,0.0373565]
[1724511738699,0.22004384,64150.0,64149.0,0.0373565]
[1724511738900,0.58084384,64150.0,64149.0,0.0373565]
[1724511740306,0.518614,64150.0,64149.0,0.0373565]
[1724511741200,0.58086057,64150.0,64149.0,0.0373565]
[1724511741404,0.518614,64150.0,64149.0,0.0373565]
[1724511742600,0.157814,64150.0,64149.0,0.0373565]
[1724511742799,0.518614,64150.0,64149.0,0.0373565]
[1724511743109,0.518614,64150.0,64149.0,0.03735649]
[1724511746209,0.518614,64150.0,64149.0,0.08400161]
[1724511746602,0.440707,64150.0,64149.0,0.08400161]
[1724511746802,0.440707,64150.0,64149.0,0.05964512]
[1724511747008,0.440707,64150.0,64149.0,0.08400147]
[1724511747504,0.440707,64150.0,64149.0,0.03735635]
[1724511749199,0.440707,64150.0,64149.0,0.09954139]
[1724511749398,0.440707,64150.0,64149.0,0.03735635]
[1724511749602,0.440707,64150.0,64149.0,0.03735571]
[1724511752298,0.440707,64150.0,64149.0,0.09954075]
[1724511754110,0.440707,64150.0,64149.0,0.03735571]
[1724511754420,0.440707,64150.0,64149.0,0.07526177]
[1724511754608,0.440707,64150.0,64149.0,0.09961489]
[1724511755115,0.440707,64150.0,64149.0,0.07525983]
[1724511755302,0.440707,64150.0,64149.0,0.09961502]
[1724511755507,0.440707,64150.0,64149.0,0.03735519]
[1724511756115,2.220707,64150.0,64149.0,0.03735519]
[1724511756511,0.440707,64150.0,64149.0,0.03735519]
[1724511756710,0.440707,64150.0,64149.0,0.013]
[1724511756910,0.440707,64150.0,64149.0,0.03735608]
[1724511759814,0.51853823,64150.0,64149.0,0.03735608]
[1724511760018,0.440707,64150.0,64149.0,0.03735608]
[1724511760213,0.51853823,64150.0,64149.0,0.03735608]
[1724511764817,0.51853823,64150.0,64149.0,0.09961591]
[1724511765013,0.440707,64150.0,64149.0,0.09961591]
[1724511765918,0.440707,64150.0,64149.0,0.09961546]
[1724511766820,0.440707,64150.0,64149.0,0.09965231]
[1724511767011,0.440707,64150.0,64149.0,0.03735563]
[1724511767212,0.46596248,64150.0,64149.0,0.08408574]
[1724511767415,0.440707,64150.0,64149.0,0.03735563]
[1724511767714,0.46596199,64150.0,64149.0,0.03735563]
[1724511767915,0.46596218,64150.0,64149.0,0.03735563]
[1724511768119,0.440707,64150.0,64149.0,0.03735563]
[1724511768512,0.51861677,64150.0,64149.0,0.03735563]
[1724511768922,0.440707,64150.0,64149.0,0.03735563]
[1724511769418,0.51861673,64150.0,64149.0,0.03735563]
[1724511769617,0.440707,64150.0,64149.0,0.03735563]
[1724511769819,0.51861665,64150.0,64149.0,0.03735563]
[1724511770120,0.440707,64150.0,64149.0,0.03735563]
[1724511770326,0.51861674,64150.0,64149.0,0.03735563]
[1724511771108,0.440707,64150.0,64149.0,0.03735563]
[1724511772726,0.51861607,64150.0,64149.0,0.03735609]
[1724511773311,0.440707,64150.0,64149.0,0.03735609]
[1724511773621,0.51861582,64150.0,64149.0,0.03735609]
[1724511774014,0.46596178,64150.0,64149.0,0.08409155]
[1724511775019,0.46596178,64150.0,64149.0,0.03735609]
[1724511776026,0.46596178,64150.0,64149.0,0.013]
[1724511776226,0.46596178,64150.0,64149.0,0.03735683]
[1724511778630,0.10516178,64150.0,64149.0,0.03735683]
[1724511778831,0.46596178,64150.0,64149.0,0.03735683]
[1724511779130,0.46596178,64150.0,64149.0,0.013]
[1724511779437,0.46596178,64150.0,64149.0,0.03735696]
[1724511781126,0.54386878,64150.0,64149.0,0.03735696]
[1724511781323,0.46596178,64150.0,64149.0,0.03735696]
[1724511781823,0.46596178,64150.0,64149.0,0.08409012]
[1724511784532,0.10516178,64150.0,64149.0,0.08409012]
[1724511784732,0.10516178,64150.0,64149.0,0.08409014]
[1724511784733,0.46596178,64150.0,64149.0,0.08409014]
[1724511785131,0.46596178,64150.0,64149.0,0.05973316]
[1724511785436,0.46596178,64150.0,64149.0,0.03735698]
[1724511785821,0.10516178,64150.0,64149.0,0.03735698]